fUSD/lending_fUSD_20260304
["ID","MTS","AMOUNT","RATE_DAILY","PERIOD"]
[407671809,1772664631979,-216.30344633,0.000248,2]
[407671810,1772664631991,-283.69655367,0.000248,2]
[407671811,1772664632001,-195.0,0.0002485,2]
[407671812,1772664632011,-1000.0,0.000249,2]
[407671813,1772664632020,-195.0,0.00024924,2]
[407671814,1772664632030,-195.0,0.00024924,2]
[407671815,1772664632040,-195.0,0.00024924,2]
[407671816,1772664632050,-1200.0,0.0002493,2]
[407671817,1772664632061,-5000.0,0.00024931,2]
[407671818,1772664632071,-1212.0,0.00027132,2]
[407671819,1772664632081,-250.0,0.00027225,2]
[407671820,1772664632091,-1017.0,0.00027279,2]
[407671821,1772664632099,-175.04779808,0.0002728,2]
[407671822,1772664632111,-89.85219529,0.0002728,2]
[407671823,1772664632121,-5000.0,0.0002728,2]
[407671825,1772664632131,-195.0,0.0002728,2]
[407671827,1772664632140,-300.0,0.00027386,2]
[407671828,1772664632149,-1000.0,0.000286,2]
[407671830,1772664632158,-200.0,0.00028729,2]
[407671832,1772664632169,-1000.0,0.00029129,2]
[407671833,1772664632178,-500.0,0.00029135,2]
[407671835,1772664632188,-300.0,0.00029169,2]
[407671837,1772664632198,-150.0,0.00029208,2]
[407671838,1772664632207,-762.86,0.00029255,30]
[407671840,1772664632217,-200.0,0.00029339,2]
[407671842,1772664632226,-200.0,0.000296,10]
[407671844,1772664632236,-500.0,0.000297,10]
[407671845,1772664632246,-800.0,0.000298,10]
[407671847,1772664632255,-1000.0,0.000299,10]
[407671849,1772664632266,-5000.0,0.0003,6]
[407671851,1772664632275,-1000.0,0.0003005,2]
[407671852,1772664632284,-150.0,0.0003005,2]
[407671854,1772664632293,-1198.9228,0.00030219,2]
[407671856,1772664632302,-1055.1609,0.00030219,2]
[407671857,1772664632311,-2500.0,0.00030219,2]
[407671859,1772664632320,-734.38230858,0.00030228,2]
[407671861,1772664632330,-5000.0,0.0003023,2]
[407671863,1772664632340,-172.00105694,0.00030238,2]
[407671864,1772664632349,-988.40537175,0.00030238,2]
[407671866,1772664632359,-7180.78587114,0.00030238,2]
[407671868,1772664632369,-1639.79965989,0.00030238,2]
[407671870,1772664632379,-5500.0,0.00030309,6]
[407671871,1772664632389,-293.85,0.00030319,10]
[407671873,1772664632398,-244.88,0.00030319,10]
[407671875,1772664632408,-3092.13,0.0003032,2]
[407671877,1772664632417,-204.4579549,0.0003032,2]
[407671879,1772664632427,-182.25453507,0.00030329,2]
[407671880,1772664632437,-500.0,0.00030329,2]
[407671882,1772664632446,-500.0,0.00030329,2]
[407671884,1772664632456,-500.0,0.00030329,2]
[407671886,1772664632466,-500.0,0.00030329,2]
[407671887,1772664632476,-500.0,0.00030329,2]
[407671889,1772664632485,-500.0,0.00030329,2]
[407671891,1772664632495,-346.58944532,0.00030329,2]
[407671893,1772664632504,-500.0,0.00030329,2]
[407671894,1772664632514,-500.0,0.00030329,2]
[407671896,1772664632524,-500.0,0.00030329,2]
[407671898,1772664632533,-500.0,0.00030329,2]
[407671900,1772664632543,-500.0,0.00030329,2]
[407671901,1772664632553,-500.0,0.00030329,2]
[407671903,1772664632562,-457.67656004,0.00030329,2]
[407671905,1772664632572,-500.0,0.00030329,2]
[407671907,1772664632582,-500.0,0.00030329,2]
[407671909,1772664632591,-500.0,0.00030329,2]
[407671910,1772664632601,-500.0,0.00030329,2]
[407671912,1772664632610,-500.0,0.00030329,2]
[407671914,1772664632619,-500.0,0.00030329,2]
[407671916,1772664632629,-500.0,0.00030329,2]
[407671918,1772664632638,-500.0,0.00030329,2]
[407671919,1772664632648,-500.0,0.00030329,2]
[407671921,1772664632657,-500.0,0.00030329,2]
[407671923,1772664632667,-500.0,0.00030329,2]
[407671925,1772664632676,-500.0,0.00030329,2]
[407671927,1772664632685,-500.0,0.00030329,2]
[407671928,1772664632694,-500.0,0.00030329,2]
[407671930,1772664632703,-500.0,0.00030329,2]
[407671932,1772664632713,-500.0,0.00030329,2]
[407671934,1772664632723,-312.54975501,0.00030329,2]
[407671935,1772664632733,-349.08094447,0.00030329,2]
[407671937,1772664632742,-213.62434845,0.00030329,2]
[407671939,1772664632752,-500.0,0.00030329,2]
[407671941,1772664632761,-500.0,0.00030329,2]
[407671943,1772664632773,-465.22285251,0.00030329,2]
[407671944,1772664632786,-500.0,0.00030329,2]
[407671946,1772664632795,-500.0,0.00030329,2]
[407671948,1772664632804,-500.0,0.00030329,2]
[407671950,1772664632815,-488.09784404,0.00030329,2]
[407671951,1772664632824,-500.0,0.00030329,2]
[407671953,1772664632833,-500.0,0.00030329,2]
[407671955,1772664632843,-500.0,0.00030329,2]
[407671957,1772664632852,-500.0,0.00030329,2]
[407671959,1772664632861,-500.0,0.00030329,2]
[407671960,1772664632871,-217.35161927,0.00030329,2]
[407671962,1772664632880,-226.64904877,0.00030329,2]
[407671964,1772664632889,-3807.839,0.00030329,25]
[407671966,1772664632898,-201.353,0.00030329,25]
[407671967,1772664632908,-150.0,0.00030329,2]
[407671969,1772664632917,-500.0,0.00030329,2]
[407671971,1772664632927,-500.0,0.00030329,2]
[407671973,1772664632936,-500.0,0.00030329,2]
[407671975,1772664632946,-500.0,0.00030329,2]
[407671977,1772664632959,-500.0,0.00030329,2]
[407671978,1772664632968,-500.0,0.00030329,2]
[407671979,1772664632977,-500.0,0.00030329,2]
[407671980,1772664632987,-500.0,0.00030329,2]
[407671981,1772664632996,-500.0,0.00030329,2]
[407671982,1772664633005,-351.48460979,0.00030329,2]
[407671983,1772664633015,-1996856.93146595,0.0003033,2]
[407671984,1772664633027,-29656.74575762,0.0003033,2]
[407671985,1772664633042,-10088.49252216,0.0003033,2]
[407671986,1772664633053,-20809.68440762,0.0003033,2]
[407671987,1772664633064,-1254.41808677,0.0003033,2]
[407671991,1772664637989,-858.54015141,0.00030238,2]
[407671992,1772664637999,-6074.08772493,0.0003033,2]
[407671994,1772664638052,-45802.157581,0.0003033,2]
[407671995,1772664638108,-330.47737862,0.0003033,2]
[407672039,1772664640401,-20822.98263625,0.0003033,2]
[407672040,1772664640620,-368304.02243908,0.0003033,2]
[407672041,1772664640630,-1000.0,0.00030338,120]
[407672042,1772664640640,-1000.0,0.00030348,2]
[407672043,1772664640649,-5783.8644,0.00030348,2]
[407672044,1772664640659,-1206.5711,0.00030348,30]
[407672045,1772664640668,-155.58,0.000304,14]
[407672046,1772664640678,-71965.8576016,0.000304,2]
[407672047,1772664640687,-693.3919763,0.00030411,2]
[407672048,1772664640697,-200.0,0.0003043,2]
[407672049,1772664640706,-500.0,0.0003043,2]
[407672050,1772664640716,-802.16004885,0.0003043,2]
[407672051,1772664640726,-500.0,0.0003043,2]
[407672052,1772664640736,-500.0,0.0003043,2]
[407672053,1772664640745,-500.0,0.0003043,2]
[407672054,1772664640755,-500.0,0.0003043,2]
[407672055,1772664640765,-500.0,0.0003043,2]
[407672056,1772664640777,-500.0,0.0003043,2]
[407672057,1772664640788,-500.0,0.0003043,2]
[407672058,1772664640798,-1000.0,0.0003043,2]
[407672059,1772664640808,-500.0,0.0003043,2]
[407672060,1772664640818,-500.0,0.0003043,2]
[407672061,1772664640828,-500.0,0.0003043,2]
[407672062,1772664640837,-500.0,0.0003043,2]
[407672063,1772664640848,-500.0,0.0003043,2]
[407672064,1772664640858,-500.0,0.0003043,2]
[407672065,1772664640868,-500.0,0.0003043,2]
[407672066,1772664640877,-500.0,0.0003043,2]
[407672067,1772664640887,-500.0,0.0003043,2]
[407672068,1772664640896,-500.0,0.0003043,2]
[407672069,1772664640905,-500.0,0.0003043,2]
[407672070,1772664640915,-500.0,0.0003043,2]
[407672071,1772664640924,-500.0,0.0003043,2]
[407672072,1772664640934,-500.0,0.0003043,2]
[407672074,1772664640945,-500.0,0.0003043,2]
[407672075,1772664640954,-500.0,0.0003043,2]
[407672076,1772664640964,-500.0,0.0003043,2]
[407672077,1772664640973,-500.0,0.0003043,2]
[407672078,1772664640983,-500.0,0.0003043,2]
[407672079,1772664640992,-500.0,0.0003043,2]
[407672080,1772664641002,-500.0,0.0003043,2]
[407672081,1772664641012,-500.0,0.0003043,2]
[407672082,1772664641022,-500.0,0.0003043,2]
[407672083,1772664641032,-151.0,0.0003043,2]
[407672084,1772664641042,-151.0,0.0003043,2]
[407672085,1772664641053,-151.0,0.0003043,2]
[407672086,1772664641063,-151.0,0.0003043,2]
[407672087,1772664641074,-151.0,0.0003043,2]
[407672088,1772664641084,-151.0,0.0003043,2]
[407672089,1772664641094,-151.0,0.0003043,2]
[407672090,1772664641104,-151.0,0.0003043,2]
[407672091,1772664641114,-151.0,0.0003043,2]
[407672092,1772664641124,-151.0,0.0003043,2]
[407672093,1772664641136,-151.0,0.0003043,2]
[407672094,1772664641146,-200.0,0.0003044,2]
[407672095,1772664641155,-500.0,0.00030447,120]
[407672096,1772664641166,-628.71116505,0.00030447,120]
[407672097,1772664641177,-500.0,0.00030447,30]
[407672098,1772664641187,-500.0,0.00030447,30]
[407672099,1772664641197,-291.80094519,0.00030447,30]
[407672100,1772664641207,-500.0,0.00030447,120]
[407672101,1772664641216,-500.0,0.00030447,120]
[407672102,1772664641226,-251.46559137,0.00030447,120]
[407672103,1772664641240,-248.53440863,0.00030447,120]
[407672104,1772664641250,-500.0,0.00030447,120]
[407672105,1772664641260,-247.75279697,0.00030447,120]
[407672106,1772664641272,-252.24720303,0.00030447,120]
[407672107,1772664641282,-500.0,0.00030447,120]
[407672108,1772664641292,-500.0,0.00030447,120]
[407672109,1772664641302,-500.0,0.00030447,120]
[407672110,1772664641311,-500.0,0.00030447,120]
[407672111,1772664641321,-500.0,0.00030447,120]
[407672112,1772664641330,-197.75279697,0.00030448,2]
[407672118,1772664645471,-707.48499536,0.000299,2]
[407672119,1772664645589,-769420.36437292,0.000299,2]
[407672120,1772664645648,-50.02329166,0.000299,2]
[407672121,1772664645659,-366.0,0.000299,2]
[407672122,1772664645704,-681.4106682,0.000299,2]
[407672123,1772664645716,-28549.36489582,0.000299,2]
[407672127,1772664645765,-456.66373361,0.000299,2]
[407672128,1772664645785,-8410.19288311,0.000299,2]
[407672129,1772664645798,-3590.68114592,0.000299,2]
[407672130,1772664645809,-460833.164887,0.000299,2]
[407672131,1772664645920,-10581.1788975,0.000299,2]
[407672132,1772664645931,-3616.48774531,0.000299,2]
[407672133,1772664645943,-362.7,0.000299,2]
[407672137,1772664646098,-890.74413196,0.000299,2]
[407672138,1772664646159,-2485.95076643,0.000299,2]
[407672139,1772664646221,-451.38757995,0.000299,2]
[407672140,1772664646245,-124827.68677771,0.000299,2]
[407672144,1772664776651,-264.05,0.00046508,120]
[407672145,1772664776676,-4000.0,0.00046508,120]
[407672146,1772664776705,-500161.01,0.00046508,45]
[407672147,1772664776730,-1899.999999,0.00046508,120]
[407672148,1772664776754,-2477.45817602,0.00046508,91]
[407672149,1772664776779,-326.0,0.00046508,30]
[407672150,1772664776805,-500.0,0.00046508,60]
[407672151,1772664776838,-500.0,0.00046508,60]
[407672152,1772664776865,-500.0,0.00046508,60]
[407672153,1772664776891,-160.22230683,0.00046508,60]
[407672154,1772664776916,-60300.0,0.00046508,60]
[407672155,1772664776944,-154.83904707,0.00046508,30]
[407672156,1772664776969,-1390.0980883,0.00046508,30]
[407672157,1772664776993,-1594.51196511,0.00046508,30]
[407672158,1772664777019,-1775.97066328,0.00046508,30]
[407672159,1772664777044,-1675.77884378,0.00046508,120]
[407672160,1772664777069,-1512.19877426,0.00046508,120]
[407672161,1772664777093,-6233.81464949,0.00046508,30]
[407672162,1772664777118,-1822.92360962,0.00046508,120]
[407672163,1772664777142,-2070.59176494,0.00046508,30]
[407672164,1772664777170,-1680.78831398,0.00046508,120]
[407672165,1772664777194,-1404.2368607,0.00046508,30]
[407672166,1772664777219,-3536.19863198,0.00046508,30]
[407672167,1772664777244,-2442.01539312,0.00046508,30]
[407672168,1772664777269,-3977.12285182,0.00046508,30]
[407672169,1772664777294,-2308.80196732,0.00046508,30]
[407672170,1772664777318,-6030.16,0.00046508,120]
[407672171,1772664777342,-151.31701082,0.00046508,30]
[407672172,1772664777367,-1000.0,0.00046508,31]
[407672173,1772664777393,-10011.70368935,0.00046508,30]
[407672174,1772664777417,-804.99534145,0.00046508,120]
[407672175,1772664777442,-598.6412307,0.00046508,120]
[407672176,1772664777467,-400.0,0.00046508,30]
[407672177,1772664777492,-400.0,0.00046508,30]
[407672178,1772664777516,-400.0,0.00046508,30]
[407672179,1772664777541,-400.0,0.00046508,30]
[407672180,1772664777566,-400.0,0.00046508,30]
[407672181,1772664777600,-400.0,0.00046508,30]
[407672182,1772664777631,-400.0,0.00046508,30]
[407672183,1772664777659,-400.0,0.00046508,30]
[407672184,1772664777684,-400.0,0.00046508,30]
[407672185,1772664777709,-400.0,0.00046508,30]
[407672186,1772664777736,-400.0,0.00046508,30]
[407672187,1772664777762,-400.0,0.00046508,30]
[407672188,1772664777787,-400.0,0.00046508,30]
[407672189,1772664777815,-400.0,0.00046508,30]
[407672190,1772664777844,-400.0,0.00046508,30]
[407672191,1772664777869,-400.0,0.00046508,30]
[407672192,1772664777895,-480.07569758,0.00046508,30]
[407672193,1772664777922,-228.69657264,0.00046508,120]
[407672194,1772664777947,-4616.50184149,0.00046508,120]
[407672195,1772664777973,-710370.6424673,0.00046508,30]
[407672196,1772664778002,-50000.0,0.00046508,52]
[407672197,1772664778034,-2358.75,0.00046508,30]
[407672198,1772664778060,-8500.0,0.00046508,30]
[407672199,1772664778088,-50000.0,0.00046508,48]
[407672200,1772664778113,-500000.0,0.00046508,55]
[407672201,1772664778138,-500213.0,0.00046508,60]
[407672202,1772664778163,-2688.79779745,0.00046508,64]
[407672203,1772664778188,-7074.4413,0.00046508,60]
[407672204,1772664778214,-7074.4413,0.00046508,60]
[407672205,1772664778242,-7074.4413,0.00046508,60]
[407672206,1772664778267,-7074.4413,0.00046508,60]
[407672207,1772664778292,-7074.4413,0.00046508,60]
[407672208,1772664778318,-1500.0,0.00046508,30]
[407672209,1772664778343,-1500.0,0.00046508,120]
[407672210,1772664778368,-47586.92312463,0.00046508,60]
[407672211,1772664778393,-5548.47913458,0.00046508,30]
[407672212,1772664778418,-2999.999999,0.00046508,30]
[407672213,1772664778447,-26375.66377486,0.00046508,30]
[407672214,1772664778472,-5943.24440074,0.00046508,30]
[407672215,1772664778499,-4000.0,0.00046508,30]
[407672216,1772664778525,-305958.42,0.00046508,30]
[407672217,1772664778551,-802.56696567,0.00046508,60]
[407672218,1772664778576,-1710.83091859,0.00046508,30]
[407672219,1772664778601,-151.01,0.00046508,120]
[407672220,1772664778625,-2383.31429105,0.00046508,120]
[407672221,1772664778652,-2522.3003429,0.00046508,120]
[407672222,1772664778678,-3112.15882079,0.00046508,120]
[407672223,1772664778703,-2611.18885976,0.00046508,120]
[407672224,1772664778728,-14712.90285288,0.00046508,30]
[407672225,1772664778754,-2568.79219043,0.00046508,120]
[407672226,1772664778778,-1005170.51874353,0.00046508,30]
[407672227,1772664778802,-6793.82205009,0.00046508,30]
[407672228,1772664779040,-64264.46732019,0.00046508,30]
[407672229,1772664779067,-91075.41717982,0.00046508,30]
[407672230,1772664779091,-20000.0,0.00046508,30]
[407672231,1772664779115,-500.0,0.00046508,120]
[407672232,1772664779140,-6516.96502972,0.00046508,60]
[407672233,1772664779166,-50000.0,0.00046508,44]
[407672234,1772664779194,-50000.0,0.00046508,41]
[407672235,1772664779219,-50000.0,0.00046508,40]
[407672236,1772664779244,-50000.0,0.00046508,30]
[407672237,1772664779268,-3000.0,0.00046508,30]
[407672238,1772664779292,-3785058.23905629,0.00046508,30]
[407672239,1772664779316,-477934.71795193,0.00046508,30]
[407672240,1772664779340,-289.22012239,0.00046508,30]
[407672241,1772664779368,-412914.71681476,0.00046508,30]
[407672242,1772664784236,-109968.4544622,0.00046508,30]
[407672243,1772664784262,-1246.75,0.00046508,30]
[407672244,1772664784288,-1185.95934219,0.00046508,30]
[407672245,1772664784315,-1246.75,0.00046508,30]
[407672246,1772664784341,-176.7327853,0.00046508,120]
[407672247,1772664784370,-1246.75,0.00046508,30]
[407672248,1772664784397,-1246.75,0.00046508,30]
[407672249,1772664784424,-1246.75,0.00046508,30]
[407672250,1772664784450,-1246.75,0.00046508,30]
[407672251,1772664784474,-860.12,0.00046508,30]
[407672252,1772664784501,-1246.75,0.00046508,30]
[407672253,1772664784526,-1246.75,0.00046508,30]
[407672254,1772664784552,-1246.75,0.00046508,30]
[407672255,1772664784577,-1246.75,0.00046508,30]
[407672256,1772664784602,-1246.75,0.00046508,30]
[407672257,1772664784626,-1246.75,0.00046508,30]
[407672258,1772664784651,-1246.75,0.00046508,30]
[407672259,1772664784676,-1246.75,0.00046508,30]
[407672260,1772664784702,-1246.75,0.00046508,30]
[407672261,1772664784728,-1246.75,0.00046508,30]
[407672262,1772664784753,-1246.75,0.00046508,30]
[407672263,1772664784779,-1246.75,0.00046508,30]
[407672264,1772664784805,-1246.75,0.00046508,30]
[407672265,1772664784834,-1246.75,0.00046508,30]
[407672266,1772664784859,-1246.75,0.00046508,30]
[407672267,1772664784884,-1246.75,0.00046508,30]
[407672268,1772664784911,-1246.75,0.00046508,30]
[407672269,1772664784937,-1246.75,0.00046508,30]
[407672270,1772664784963,-562.81,0.00046508,30]
[407672271,1772664784987,-562.8,0.00046508,30]
[407672272,1772664785012,-1246.75,0.00046508,30]
[407672273,1772664785037,-1246.75,0.00046508,30]
[407672274,1772664785062,-562.8,0.00046508,30]
[407672275,1772664785281,-1246.75,0.00046508,30]
[407672276,1772664785313,-562.8,0.00046508,30]
[407672277,1772664785339,-1246.75,0.00046508,30]
[407672278,1772664785365,-1246.75,0.00046508,30]
[407672279,1772664785391,-337.93,0.00046508,30]
[407672280,1772664785416,-1246.75,0.00046508,30]
[407672281,1772664785441,-1246.75,0.00046508,30]
[407672282,1772664785468,-1246.75,0.00046508,30]
[407672283,1772664785494,-1246.75,0.00046508,30]
[407672284,1772664785519,-1246.75,0.00046508,30]
[407672285,1772664785544,-1246.75,0.00046508,30]
[407672286,1772664785570,-1246.75,0.00046508,30]
[407672287,1772664785596,-1246.75,0.00046508,30]
[407672288,1772664785623,-1246.75,0.00046508,30]
[407672289,1772664785648,-1246.75,0.00046508,30]
[407672290,1772664785675,-1246.75,0.00046508,30]
[407672291,1772664785703,-1246.75,0.00046508,30]
[407672292,1772664785730,-1246.75,0.00046508,30]
[407672293,1772664785755,-1246.75,0.00046508,30]
[407672294,1772664785782,-1246.75,0.00046508,30]
[407672295,1772664785806,-1246.75,0.00046508,30]
[407672296,1772664785835,-1246.75,0.00046508,30]
[407672297,1772664785862,-1246.75,0.00046508,30]
[407672298,1772664785888,-1246.75,0.00046508,30]
[407672299,1772664785921,-1246.75,0.00046508,30]
[407672300,1772664785947,-1246.75,0.00046508,30]
[407672301,1772664785973,-1246.75,0.00046508,30]
[407672302,1772664786000,-1246.75,0.00046508,30]
[407672303,1772664786026,-1246.75,0.00046508,30]
[407672304,1772664786051,-1246.75,0.00046508,30]
[407672305,1772664786076,-1246.75,0.00046508,30]
[407672306,1772664786101,-150.0,0.00046508,120]
[407672307,1772664786127,-1246.75,0.00046508,30]
[407672308,1772664786154,-1246.75,0.00046508,30]
[407672309,1772664786180,-1246.75,0.00046508,30]
[407672310,1772664786204,-1246.75,0.00046508,30]
[407672311,1772664786230,-1246.75,0.00046508,30]
[407672312,1772664786254,-1246.75,0.00046508,30]
[407672313,1772664786278,-1246.75,0.00046508,30]
[407672314,1772664786303,-1246.75,0.00046508,30]
[407672315,1772664786336,-1246.75,0.00046508,30]
[407672316,1772664786362,-1246.75,0.00046508,30]
[407672317,1772664786389,-1246.75,0.00046508,30]
[407672318,1772664813103,-195.0,0.00029895,120]
[407672319,1772664813128,-195.0,0.00030026,120]
[407672320,1772664813157,-195.0,0.00030026,120]
[407672321,1772664813181,-195.0,0.00030026,120]
[407672322,1772664813207,-220.56274685,0.00030319,120]
[407672323,1772664813232,-500.0,0.00030319,30]
[407672324,1772664813258,-500.0,0.00030329,30]
[407672325,1772664813283,-479.7981662,0.0003058,120]
[407672326,1772664813311,-762.86,0.0003219,30]
[407672327,1772664813336,-170.2,0.00032314,120]
[407672328,1772664813544,-5000.0,0.00032879,120]
[407672329,1772664813567,-195.0,0.00032879,120]
[407672330,1772664813591,-3821.26,0.000335,30]
[407672331,1772664813615,-2000.0,0.000337,30]
[407672332,1772664813639,-3156.35141408,0.00035,30]
[407672333,1772664813663,-10017.65069553,0.00035,30]
[407672334,1772664813688,-2276.80823631,0.00035,30]
[407672335,1772664813716,-5000.0,0.00035,30]
[407672336,1772664813741,-1000.0,0.00035,30]
[407672337,1772664813767,-762.86,0.00035125,30]
[407672338,1772664813793,-3821.26,0.000355,30]
[407672339,1772664813817,-3021.53196585,0.00035616,30]
[407672340,1772664813846,-2521.08225032,0.00035616,30]
[407672341,1772664813872,-2875.26800844,0.00035616,30]
[407672342,1772664813901,-1730.894593,0.00035911,120]
[407672343,1772664813930,-350.06,0.000367,30]
[407672344,1772664813961,-3000.0,0.0003688,120]
[407672345,1772664813990,-170.2,0.0003693,120]
[407672346,1772664814017,-300.0,0.00036986,120]
[407672347,1772664814046,-482.54078728,0.000372,120]
[407672348,1772664814074,-482.54078724,0.000372,120]
[407672349,1772664814101,-482.54078724,0.000372,120]
[407672350,1772664814128,-1444.0,0.00037753,120]
[407672351,1772664814156,-3089.0,0.00038,30]
[407672352,1772664814188,-762.86,0.00038061,30]
[407672353,1772664814214,-1900.0,0.0003898,30]
[407672354,1772664814240,-3000.0,0.00039,30]
[407672355,1772664814266,-3364.715236,0.000391,120]
[407672356,1772664814293,-300.0,0.00039178,120]
[407672357,1772664814320,-180.455,0.00039632,60]
[407672358,1772664814347,-155.92694913,0.00039828,30]
[407672359,1772664814374,-4600.0,0.0004,120]
[407672360,1772664814400,-5000.0,0.0004,120]
[407672361,1772664814428,-5000.0,0.0004,120]
[407672362,1772664814457,-600.0,0.0004,120]
[407672363,1772664814486,-150.0,0.0004,120]
[407672364,1772664814513,-17984.35869738,0.0004,120]
[407672365,1772664814540,-1093.0,0.0004,120]
[407672366,1772664814567,-3000.0,0.0004,30]
[407672367,1772664814594,-5376.37303109,0.0004,120]
[407672368,1772664814621,-499.35004186,0.0004,120]
[407672369,1772664814649,-5000.0,0.0004,90]
[407672370,1772664814676,-1000.0,0.0004,120]
[407672371,1772664814706,-10000.0,0.0004,120]
[407672372,1772664814733,-12500.0,0.0004,120]
[407672373,1772664814763,-180.455,0.0004018,60]
[407672374,1772664814791,-12500.0,0.0004025,120]
[407672375,1772664814820,-482.54078724,0.00040256,120]
[407672376,1772664814852,-12500.0,0.000405,120]
[407672377,1772664814879,-180.455,0.00040728,60]
[407672378,1772664814906,-12500.0,0.0004075,120]
[407672379,1772664814935,-150.4,0.000409,120]
[407672380,1772664814963,-762.86,0.00040996,30]
[407672381,1772664814990,-674.01,0.00041,120]
[407672382,1772664815017,-3000.0,0.00041,30]
[407672383,1772664815045,-9433.95291507,0.00041,30]
[407672384,1772664815074,-205074.59134026,0.00041,120]
[407672385,1772664815104,-10000.0,0.00041,120]
[407672386,1772664815134,-12500.0,0.00041,120]
[407672387,1772664815163,-151.0,0.00041,120]
[407672388,1772664815193,-151.0,0.00041,120]
[407672389,1772664815222,-245.253301,0.00041,120]
[407672390,1772664815252,-400.0,0.00041086,30]
[407672391,1772664815282,-327.65909596,0.00041086,30]
[407672392,1772664815312,-461.12,0.00041096,90]
[407672393,1772664815342,-50000.0,0.00041096,90]
[407672394,1772664815372,-151.0,0.00041096,120]
[407672395,1772664815401,-151.0,0.00041096,120]
[407672396,1772664815432,-151.0,0.00041096,120]
[407672397,1772664815463,-151.0,0.00041096,120]
[407672398,1772664815494,-151.0,0.00041096,120]
[407672399,1772664815524,-151.0,0.00041096,120]
[407672400,1772664815557,-244.098708,0.00041096,120]
[407672401,1772664815586,-175.257032,0.00041096,120]
[407672402,1772664815617,-257.070979,0.00041096,120]
[407672403,1772664815899,-257.070979,0.00041096,120]
[407672404,1772664815931,-257.070979,0.00041096,120]
[407672405,1772664815961,-257.070979,0.00041096,120]
[407672406,1772664815991,-257.070979,0.00041096,120]
[407672407,1772664816020,-257.070979,0.00041096,120]
[407672408,1772664816050,-257.070979,0.00041096,120]
[407672409,1772664816080,-257.070979,0.00041096,120]
[407672410,1772664816108,-257.070979,0.00041096,120]
[407672411,1772664816136,-257.070979,0.00041096,120]
[407672412,1772664816166,-257.070979,0.00041096,120]
[407672413,1772664816196,-257.070979,0.00041096,120]
[407672414,1772664816222,-257.070979,0.00041096,120]
[407672415,1772664816251,-257.070979,0.00041096,120]
[407672416,1772664816278,-257.070979,0.00041096,120]
[407672417,1772664816305,-257.070979,0.00041096,120]
[407672418,1772664816333,-257.070979,0.00041096,120]
[407672419,1772664816360,-257.070979,0.00041096,120]
[407672420,1772664816538,-257.070979,0.00041096,120]
[407672421,1772664816565,-257.070982,0.00041096,120]
[407672422,1772664816594,-313.258543,0.00041096,120]
[407672423,1772664816623,-313.258543,0.00041096,120]
[407672424,1772664816652,-313.258543,0.00041096,120]
[407672425,1772664816681,-313.258543,0.00041096,120]
[407672426,1772664816709,-313.258543,0.00041096,120]
[407672427,1772664816736,-313.258543,0.00041096,120]
[407672428,1772664816764,-313.258543,0.00041096,120]
[407672429,1772664816792,-313.258543,0.00041096,120]
[407672430,1772664816821,-313.258543,0.00041096,120]
[407672431,1772664816851,-313.258543,0.00041096,120]
[407672432,1772664816880,-313.258543,0.00041096,120]
[407672433,1772664816908,-313.258543,0.00041096,120]
[407672434,1772664816936,-313.258543,0.00041096,120]
[407672435,1772664816964,-313.258543,0.00041096,120]
[407672436,1772664816991,-313.258543,0.00041096,120]
[407672437,1772664817018,-313.258543,0.00041096,120]